Workbook

Sheet Overview
B4: The Acquisition of Dracula Glass
B5: Valuation Model
B8: Worksheet | C8: Description
B9: Revenue | C9: Revenue Model
B10: GC Forecasts | C10: Glass Containers, Financial Forecasts
B11: GC Valuation | C11: Glass Containers, Enterprise DCF
B12: Flat Forecasts | C12: Flat Glass, Financial Forecasts
B13: Flat Valuation | C13: Flat Glass, Enterprise DCF
B14: Dracula Valuation | C14: Dracula Equity Valuation

Sheet Revenue (hidden)
A2: Revenue Model
A3: Glass Containers, Revenue Model
A5: Brazilian Market | J5: Dracula Glass
A6: Projected Units | J6: Projected Units
H7: CAGR | Q7: CAGR
A8: Millions of bottles | B8: 2018 | C8: =($B8+1) & "F" -> 2019F | D8: =($B8+2) & "F" -> 2020F | E8: =($B8+3) & "F" -> 2021F | F8: =($B8+4) & "F" -> 2022F | H8: Forecast | J8: Millions of bottles | K8: =$B$8 -> 2018 | L8: =($B8+1) & "F" -> 2019F | M8: =($B8+2) & "F" -> 2020F | N8: =($B8+3) & "F" -> 2021F | O8: =($B8+4) & "F" -> 2022F | Q8: Forecast
A9: Beer | B9: 12886 | C9: =B9*(1+$H9) -> 13272.58 | D9: =C9*(1+$H9) -> 13670.7574 | E9: 14080.88012 | F9: 14503.30653 | H9: 0.03 | J9: =market1 -> Beer | K9: =B31 -> 4948.224 | L9: 5113.261445 | M9: 5283.747735 | N9: 5459.861267 | O9: 5641.786238 | Q9: =RATE(COLUMN(O9) - COLUMN(K9), 0, -K9, O9) -> 0.03333661642
A10: Soft drinks | B10: 6569 | C10: =B10*(1+$H10) -> 6404.775 | D10: 6244.655625 | E10: 6088.539234 | F10: 5936.325754 | H10: -0.025 | J10: =market3 -> Wines and spirits | K10: 1011.626 | L10: 1018.359225 | M10: 1024.123523 | N10: 1028.963131 | O10: 1032.920681 | Q10: =RATE(COLUMN(O10) - COLUMN(K10), 0, -K10, O10) -> 0.005221450725
A11: Wines and spirits | B11: 3392 | C11: 3425.92 | D11: 3460.1792 | E11: 3494.780992 | F11: 3529.728802 | H11: 0.01 | J11: =market2 -> Soft drinks | K11: 393.472 | L11: 405.97152 | M11: 418.6816832 | N11: 431.6054525 | O11: 444.745829 | Q11: =RATE(COLUMN(O11) - COLUMN(K11), 0, -K11, O11) -> 0.03109697504
A12: Consumer products | B12: 3439 | C12: 3593.755 | D12: 3755.473975 | E12: 3924.470304 | F12: 4101.071468 | H12: 0.045 | J12: =market4 -> Consumer products | K12: 371.412 | L12: 388.12554 | M12: 405.5911893 | N12: 423.8427928 | O12: 442.9157185 | Q12: =RATE(COLUMN(O12) - COLUMN(K12), 0, -K12, O12) -> 0.045
A13: Total units, Brazil | B13: =SUM(B9:B12) -> 26286 | C13: =SUM(C9:C12) -> 26697.03 | D13: =SUM(D9:D12) -> 27131.0662 | E13: =SUM(E9:E12) -> 27588.67065 | F13: =SUM(F9:F12) -> 28070.43255 | H13: =RATE(COLUMN(F13) - COLUMN(B13), 0, -B13, F13) -> 0.01655563088 | J13: Total units, Dracula | K13: =SUM(K9:K12) -> 6724.734 | L13: =SUM(L9:L12) -> 6925.71773 | M13: =SUM(M9:M12) -> 7132.14413 | N13: =SUM(N9:N12) -> 7344.272643 | O13: =SUM(O9:O12) -> 7562.368467 | Q13: =RATE(COLUMN(O13) - COLUMN(K13), 0, -K13, O13) -> 0.02978291193
A16: Dracula Glass | J16: Dracula Glass
A17: Projected Market Share | H17: 4-Year | J17: Expected Pricing
H18: Expected | Q18: CAGR
A19: Millions of bottles | B19: =B8 -> 2018 | C19: =($B19+1) & "F" -> 2019F | D19: =($B19+2) & "F" -> 2020F | E19: =($B19+3) & "F" -> 2021F | F19: =($B19+4) & "F" -> 2022F | H19: Change | J19: Average price, $R | K19: =$B$8 -> 2018 | L19: =($K19+1) & "F" -> 2019F | M19: =($K19+2) & "F" -> 2020F | N19: =($K19+3) & "F" -> 2021F | O19: =($K19+4) & "F" -> 2022F | Q19: Forecast
A20: =market1 -> Beer | B20: 0.384 | C20: =B20+$H20/4 -> 0.38525 | D20: =C20+$H20/4 -> 0.3865 | E20: =D20+$H20/4 -> 0.38775 | F20: =E20+$H20/4 -> 0.389 | H20: 0.005 | J20: =market1 -> Beer | K20: 0.6 | L20: =K20*(1+$Q20) -> 0.618 | M20: =L20*(1+$Q20) -> 0.63654 | N20: 0.6556362 | O20: 0.675305286 | Q20: 0.03
A21: =market3 -> Wines and spirits | B21: 0.154 | C21: =B21+$H21/4 -> 0.159 | D21: 0.164 | E21: 0.169 | F21: 0.174 | H21: 0.02 | J21: =market3 -> Wines and spirits | K21: 0.65 | L21: =K21*(1+$Q21) -> 0.65 | M21: 0.65 | N21: 0.65 | O21: 0.65 | Q21: 0
A22: =market2 -> Soft drinks | B22: 0.116 | C22: 0.1185 | D22: 0.121 | E22: 0.1235 | F22: 0.126 | H22: 0.01 | J22: =market2 -> Soft drinks | K22: 1.6 | L22: 1.656 | M22: 1.71396 | N22: 1.7739486 | O22: 1.836036801 | Q22: 0.035
A23: =market4 -> Consumer products | B23: 0.108 | C23: 0.108 | D23: 0.108 | E23: 0.108 | F23: 0.108 | H23: 0 | J23: =market4 -> Consumer products | K23: 0.9 | L23: 0.9225 | M23: 0.9455625 | N23: 0.9692015625 | O23: 0.9934316016 | Q23: 0.025
A24: Total share, Dracula | B24: =B35/B13 -> 0.255829491 | C24: =C35/C13 -> 0.2594190339 | D24: =D35/D13 -> 0.2628773996 | E24: =E35/E13 -> 0.2662061081 | F24: =F35/F13 -> 0.269406909 | H24: =F24-B24 -> 0.01357741801 | J24: Average price, Dracula | K24: =K35/B35 -> 0.6826020628 | L24: =L35/C35 -> 0.7006152873 | M24: =M35/D35 -> 0.7192945706 | N24: =N35/E35 -> 0.7386631703 | O24: =O35/F35 -> 0.7587441313 | Q24: =RATE(COLUMN(O24) - COLUMN(K24), 0, -K24, O24) -> 0.02679072525
A27: Dracula Glass | J27: Dracula Glass
A28: Projected Units | J28: Revenue, Packaging
H29: CAGR | Q29: CAGR
A30: Millions of bottles | B30: =$B$8 -> 2018 | C30: =($B30+1) & "F" -> 2019F | D30: =($B30+2) & "F" -> 2020F | E30: =($B30+3) & "F" -> 2021F | F30: =($B30+4) & "F" -> 2022F | H30: Forecast | J30: Real, millions | K30: =$B$8 -> 2018 | L30: =($K30+1) & "F" -> 2019F | M30: =($K30+2) & "F" -> 2020F | N30: =($K30+3) & "F" -> 2021F | O30: =($K30+4) & "F" -> 2022F | Q30: Forecast
A31: =market1 -> Beer | B31: =B9*B20 -> 4948.224 | C31: =C9*C20 -> 5113.261445 | D31: 5283.747735 | E31: 5459.861267 | F31: 5641.786238 | H31: =RATE(COLUMN(F31) - COLUMN(B31), 0, -B31, F31) -> 0.03333661642 | J31: =market1 -> Beer | K31: =B31*K20 -> 2968.9344 | L31: 3159.995573 | M31: 3363.316783 | N31: 3579.682694 | O31: 3809.928069 | Q31: =RATE(COLUMN(O31) - COLUMN(K31), 0, -K31, O31) -> 0.06433671491
A32: =market3 -> Wines and spirits | B32: =B10*B21 -> 1011.626 | C32: 1018.359225 | D32: 1024.123523 | E32: 1028.963131 | F32: 1032.920681 | H32: =RATE(COLUMN(F32) - COLUMN(B32), 0, -B32, F32) -> 0.005221450725 | J32: =market3 -> Wines and spirits | K32: 657.5569 | L32: 661.9334962 | M32: 665.6802896 | N32: 668.8260349 | O32: 671.3984427 | Q32: =RATE(COLUMN(O32) - COLUMN(K32), 0, -K32, O32) -> 0.005221450725
A33: =market2 -> Soft drinks | B33: =B11*B22 -> 393.472 | C33: 405.97152 | D33: 418.6816832 | E33: 431.6054525 | F33: 444.745829 | H33: =RATE(COLUMN(F33) - COLUMN(B33), 0, -B33, F33) -> 0.03109697504 | J33: =market2 -> Soft drinks | K33: 629.5552 | L33: 672.2888371 | M33: 717.6036577 | N33: 765.6458882 | O33: 816.5697092 | Q33: =RATE(COLUMN(O33) - COLUMN(K33), 0, -K33, O33) -> 0.06718536916
A34: =market4 -> Consumer products | B34: =B12*B23 -> 371.412 | C34: 388.12554 | D34: 405.5911893 | E34: 423.8427928 | F34: 442.9157185 | H34: =RATE(COLUMN(F34) - COLUMN(B34), 0, -B34, F34) -> 0.045 | J34: =market4 -> Consumer products | K34: 334.2708 | L34: 358.0458106 | M34: 383.5118189 | N34: 410.7890971 | O34: 440.0064716 | Q34: =RATE(COLUMN(O34) - COLUMN(K34), 0, -K34, O34) -> 0.07112500001
A35: Total units, Dracula | B35: =SUM(B31:B34) -> 6724.734 | C35: =SUM(C31:C34) -> 6925.71773 | D35: =SUM(D31:D34) -> 7132.14413 | E35: =SUM(E31:E34) -> 7344.272643 | F35: =SUM(F31:F34) -> 7562.368467 | H35: =RATE(COLUMN(F35) - COLUMN(B35), 0, -B35, F35) -> 0.02978291193 | J35: Total revenue, Dracula | K35: =SUM(K31:K34) -> 4590.3173 | L35: =SUM(L31:L34) -> 4852.263717 | M35: =SUM(M31:M34) -> 5130.11255 | N35: =SUM(N31:N34) -> 5424.943714 | O35: =SUM(O31:O34) -> 5737.902693 | Q35: =RATE(COLUMN(O35) - COLUMN(K35), 0, -K35, O35) -> 0.05737154298

Sheet GC Forecasts (hidden)
A2: Glass Containers | L2: =A3 -> Financial Forecasts
A3: Financial Forecasts
A5: Dracula Glass, Glass Containers
A6: After-tax Operating Profit | C6: <------------ Forecast -----------> | I6: <------------ Forecast ----------->
A8: $R millions | B8: =start_year -> 2018 | C8: =B8+1 -> 2019 | D8: 2020 | E8: 2021 | F8: 2022 | H8: =B8 -> 2018 | I8: =C8 -> 2019 | J8: =D8 -> 2020 | K8: =E8 -> 2021 | L8: =F8 -> 2022
A9: Revenues1 | B9: 4590 | C9: =Revenue!L35 -> 4852.263717 | D9: =Revenue!M35 -> 5130.11255 | E9: =Revenue!N35 -> 5424.943714 | F9: =Revenue!O35 -> 5737.902693 | H9: 0.043 | I9: =C9/B9-1 -> 0.05713806471 | J9: =D9/C9-1 -> 0.05726169243 | K9: =E9/D9-1 -> 0.057470701 | L9: =F9/E9-1 -> 0.05768888957
A10: Raw materials | B10: -1850 | C10: =-I10*C$9 -> -1955.70542 | D10: -2067.692422 | E10: -2186.524155 | F10: -2312.662305 | H10: =-B10/B$9 -> 0.4030501089 | I10: =H10 -> 0.4030501089 | J10: 0.4030501089 | K10: 0.4030501089 | L10: 0.4030501089
A11: Forging expenses | B11: -1262 | C11: -1334.108238 | D11: -1410.501533 | E11: -1491.564045 | F11: -1577.610719 | H11: =-B11/B$9 -> 0.2749455338 | I11: 0.2749455338 | J11: 0.2749455338 | K11: 0.2749455338 | L11: 0.2749455338
A12: Depreciation | B12: -142 | C12: -150.1136052 | D12: -158.7093643 | E12: -167.8305027 | F12: -177.512458 | H12: =-B12/B$9 -> 0.03093681917 | I12: 0.03093681917 | J12: 0.03093681917 | K12: 0.03093681917 | L12: 0.03093681917
A13: Gross profit | B13: =SUM(B9:B12) -> 1336 | C13: 1412.336454 | D13: 1493.20923 | E13: 1579.025011 | F13: 1670.117211 | H13: =B13/B$9 -> 0.2910675381 | I13: =C13/C$9 -> 0.2910675381 | J13: =D13/D$9 -> 0.2910675381 | K13: =E13/E$9 -> 0.2910675381 | L13: =F13/F$9 -> 0.2910675381
A15: Selling and support costs | B15: -890 | C15: =-I15*C$9 -> -940.8528776 | D15: =-J15*D$9 -> -994.7277057 | E15: =-K15*E$9 -> -1051.895404 | F15: =-L15*F$9 -> -1112.578082 | H15: =-B15/B$9 -> 0.1938997821 | I15: =H15 -> 0.1938997821 | J15: =I15 -> 0.1938997821 | K15: =J15 -> 0.1938997821 | L15: =K15 -> 0.1938997821
A16: Operating profit | B16: =SUM(B13:B15) -> 446 | C16: 471.4835769 | D16: 498.4815244 | E16: 527.1296071 | F16: 557.5391288 | H16: =B16/B$9 -> 0.09716775599 | I16: =C16/C$9 -> 0.09716775599 | J16: =D16/D$9 -> 0.09716775599 | K16: =E16/E$9 -> 0.09716775599 | L16: =F16/F$9 -> 0.09716775599
A18: Operating taxes | B18: -133.8 | C18: =-I18*C$16 -> -141.4450731 | D18: =-J18*D$16 -> -149.5444573 | E18: =-K18*E$16 -> -158.1388821 | F18: =-L18*F$16 -> -167.2617386 | H18: =-B18/B16 -> 0.3 | I18: =H18 -> 0.3 | J18: =I18 -> 0.3 | K18: =J18 -> 0.3 | L18: =K18 -> 0.3
A19: After-tax operating profit | B19: =SUM(B16:B18) -> 312.2 | C19: 330.0385038 | D19: 348.9370671 | E19: 368.9907249 | F19: 390.2773901 | H19: =B19/B$9 -> 0.06801742919 | I19: =C19/C$9 -> 0.06801742919 | J19: =D19/D$9 -> 0.06801742919 | K19: =E19/E$9 -> 0.06801742919 | L19: =F19/F$9 -> 0.06801742919
A22: =A5 -> Dracula Glass, Glass Containers
A23: Invested Capital2
A25: $R millions | B25: =B8 -> 2018 | C25: 2019 | D25: 2020 | E25: 2021 | F25: 2022 | H25: =B25 -> 2018 | I25: =C25 -> 2019 | J25: =D25 -> 2020 | K25: =E25 -> 2021 | L25: =F25 -> 2022
A26: Operating current assets | B26: 1246 | C26: =I26*C$9/365 -> 1317.194029 | D26: =J26*D$9/365 -> 1392.618788 | E26: =K26*E$9/365 -> 1472.653566 | F26: =L26*F$9/365 -> 1557.609315 | H26: =B26/B$9*365 -> 99.08278867 | I26: =H26 -> 99.08278867 | J26: 99.08278867 | K26: 99.08278867 | L26: 99.08278867
A27: Operating current liabilities | B27: -493 | C27: =-I27*C$9/365 -> -521.1690659 | D27: =-J27*D$9/365 -> -551.0120887 | E27: =-K27*E$9/365 -> -582.6791397 | F27: =-L27*F$9/365 -> -616.2932522 | H27: =-B27/B$9*365 -> 39.2037037 | I27: 39.2037037 | J27: 39.2037037 | K27: 39.2037037 | L27: 39.2037037
A28: Operating working capital | B28: =SUM(B26:B27) -> 753 | C28: 796.0249627 | D28: 841.6066993 | E28: 889.9744263 | F28: 941.3160627 | H28: =B28/B$9*365 -> 59.87908497 | I28: =C28/C$9*365 -> 59.87908497 | J28: =D28/D$9*365 -> 59.87908497 | K28: =E28/E$9*365 -> 59.87908497 | L28: =F28/F$9*365 -> 59.87908497
A30: Property, plant & equipment, net | B30: 1432 | C30: =I30*C$9 -> 1513.821709 | D30: =J30*D$9 -> 1600.505702 | E30: =K30*E$9 -> 1692.487886 | F30: =L30*F$9 -> 1790.125633 | H30: =B30/B9 -> 0.3119825708 | I30: =H30 -> 0.3119825708 | J30: =I30 -> 0.3119825708 | K30: =J30 -> 0.3119825708 | L30: =K30 -> 0.3119825708
A31: Invested capital | B31: =SUM(B28:B30) -> 2185 | C31: 2309.846671 | D31: 2442.112401 | E31: 2582.462313 | F31: 2731.441696 | H31: =B31/B9 -> 0.4760348584 | I31: =C31/C9 -> 0.4760348584 | J31: =D31/D9 -> 0.4760348584 | K31: =E31/E9 -> 0.4760348584 | L31: =F31/F9 -> 0.4760348584
A33: 1 Revenue forecast based on analyst forecasts, not on "as-is" growth
A34: 2 Forecasts of working capital are in days sales and forecasts of PP&E are in percentage of sales

Sheet GC Valuation (hidden)
B2: Glass Containers
B3: Enterprise DCF Model
B6: $R millions | C6: =start_year -> 2018 | D6: =$C$6+1 & "F" -> 2019F | E6: =$C$6+2 & "F" -> 2020F | F6: =$C$6+3 & "F" -> 2021F | G6: =$C$6+4 & "F" -> 2022F
A7: Step 1: Free Cash Flow Forecast | B7: Revenues | C7: ='GC Forecasts'!B9 -> 4590 | D7: ='GC Forecasts'!C9 -> 4852.263717 | E7: ='GC Forecasts'!D9 -> 5130.11255 | F7: ='GC Forecasts'!E9 -> 5424.943714 | G7: ='GC Forecasts'!F9 -> 5737.902693
B8: - Raw materials | C8: ='GC Forecasts'!B10 -> -1850 | D8: ='GC Forecasts'!C10 -> -1955.70542 | E8: ='GC Forecasts'!D10 -> -2067.692422 | F8: ='GC Forecasts'!E10 -> -2186.524155 | G8: ='GC Forecasts'!F10 -> -2312.662305 | I8: Step 2: Continuing Value | J8: Glass Containers
B9: - Forging expenses | C9: ='GC Forecasts'!B11 -> -1262 | D9: ='GC Forecasts'!C11 -> -1334.108238 | E9: ='GC Forecasts'!D11 -> -1410.501533 | F9: ='GC Forecasts'!E11 -> -1491.564045 | G9: ='GC Forecasts'!F11 -> -1577.610719 | J9: Continuing Value
B10: - Operating costs | C10: ='GC Forecasts'!B12+'GC Forecasts'!B15 -> -1032 | D10: ='GC Forecasts'!C12+'GC Forecasts'!C15 -> -1090.966483 | E10: ='GC Forecasts'!D12+'GC Forecasts'!D15 -> -1153.43707 | F10: ='GC Forecasts'!E12+'GC Forecasts'!E15 -> -1219.725907 | G10: ='GC Forecasts'!F12+'GC Forecasts'!F15 -> -1290.09054
B11: = Operating profit | C11: =SUM(C7:C10) -> 446 | D11: =SUM(D7:D10) -> 471.4835769 | E11: =SUM(E7:E10) -> 498.4815244 | F11: =SUM(F7:F10) -> 527.1296071 | G11: =SUM(G7:G10) -> 557.5391288 | J11: Input | K11: Value
J12: Operating profit | K12: =G11 -> 557.5391288
B13: - Operating taxes | C13: =-C11*$K$13 -> -133.8 | D13: =-D11*$K$13 -> -141.4450731 | E13: =-E11*$K$13 -> -149.5444573 | F13: =-F11*$K$13 -> -158.1388821 | G13: =-G11*$K$13 -> -167.2617386 | J13: x 1 - Operating tax rate | K13: 0.3
B14: = After-tax operating profit | C14: =SUM(C11:C13) -> 312.2 | D14: =SUM(D11:D13) -> 330.0385038 | E14: 348.9370671 | F14: 368.9907249 | G14: 390.2773901 | J14: = After-tax operating profit | K14: =K12*(1-K13) -> 390.2773901
M15: Continuing
B16: + Depreciation | D16: =-'GC Forecasts'!C12 -> 150.1136052 | E16: =-'GC Forecasts'!D12 -> 158.7093643 | F16: =-'GC Forecasts'!E12 -> 167.8305027 | J16: After-tax operating profit | K16: =K14*(1-K15) -> 390.2773901 | M16: Value
B17: = Gross cash flow | D17: =SUM(D14:D16) -> 480.152109 | E17: =SUM(E14:E16) -> 507.6464314 | F17: 536.8212276 | J17: RONIC (Return on New Capital) | K17: =K18 -> 0.104 | M17: =K16*(1-K19/K17)/(K18-K19) -> 3752.667213
J18: WACC | K18: =$E$26 -> 0.104 | M18: (kvd formula)
B19: - Investment in working capital | D19: ='GC Forecasts'!B28-'GC Forecasts'!C28 -> -43.02496273 | E19: ='GC Forecasts'!C28-'GC Forecasts'!D28 -> -45.58173658 | F19: ='GC Forecasts'!D28-'GC Forecasts'!E28 -> -48.36772697 | J19: Growth | K19: 0.04
B20: - Capital expenditures | D20: ='GC Forecasts'!B30-'GC Forecasts'!C30+'GC Forecasts'!C12 -> -231.9353139 | E20: ='GC Forecasts'!C30-'GC Forecasts'!D30+'GC Forecasts'!D12 -> -245.3933574 | F20: ='GC Forecasts'!D30-'GC Forecasts'!E30+'GC Forecasts'!E12 -> -259.8126873
B21: = Free cash flow | D21: =SUM(D17:D20) -> 205.1918324 | E21: =SUM(E17:E20) -> 216.6713374 | F21: 228.6408133
B25: Glass Containers | E25: WACC
B26: Enterprise Value | E26: 0.104
C28: (a) | D28: (b) | E28: (a) x (b)
C29: Free | D29: Discount | E29: Discounted
B30: $R millions | C30: Cash Flow | D30: Rate | E30: Cash Flow
A31: Step 3: Enterprise DCF Valuation | B31: =D6 -> 2019F | C31: =D21 -> 205.1918324 | D31: =(1+$E$26) -> 1.104 | E31: =C31/D31 -> 185.862167
B32: =E6 -> 2020F | C32: =E21 -> 216.6713374 | D32: =D31*(1+$E$26) -> 1.218816 | E32: =C32/D32 -> 177.7719832
B33: =F6 -> 2021F | C33: =F21 -> 228.6408133 | D33: =D32*(1+$E$26) -> 1.345572864 | E33: 169.9207969
B34: Continuing value | C34: =M17 -> 3752.667213 | D34: =D33 -> 1.345572864 | E34: 2788.899296
B35: Enterprise DCF | E35: =SUM(E31:E34) -> 3322.454243

Sheet Flat Forecasts (hidden)
A2: Flat Glass | L2: =A3 -> Financial Forecasts
A3: Financial Forecasts
A5: Dracula Glass, Flat Glass
A6: After-tax Operating Profit | C6: <------------ Forecast -----------> | I6: <------------ Forecast ----------->
A8: $R millions | B8: =start_year -> 2018 | C8: =B8+1 -> 2019 | D8: =C8+1 -> 2020 | E8: =D8+1 -> 2021 | F8: =E8+1 -> 2022 | H8: =B8 -> 2018 | I8: =C8 -> 2019 | J8: =D8 -> 2020 | K8: =E8 -> 2021 | L8: =F8 -> 2022
A9: Revenues1 | B9: 3443 | C9: =B9*(1+I9) -> 3597.935 | D9: =C9*(1+J9) -> 3741.8524 | E9: =D9*(1+K9) -> 3872.817234 | F9: =E9*(1+L9) -> 4008.365837 | H9: 0.049 | I9: 0.045 | J9: 0.04 | K9: 0.035 | L9: 0.035
A10: Raw materials | B10: -2072.686 | C10: =-I10*C$9 -> -2165.95687 | D10: -2252.595145 | E10: -2331.435975 | F10: -2413.036234 | H10: =-B10/B$9 -> 0.602 | I10: =H10 -> 0.602 | J10: 0.602 | K10: 0.602 | L10: 0.602
A11: Forging expenses | B11: -650.727 | C11: -680.009715 | D11: -707.2101036 | E11: -731.9624572 | F11: -757.5811432 | H11: =-B11/B$9 -> 0.189 | I11: 0.189 | J11: 0.189 | K11: 0.189 | L11: 0.189
A12: Depreciation | B12: -90.42604396 | C12: -94.49521593 | D12: -98.27502457 | E12: -101.7146504 | F12: -105.2746632 | H12: =-B12/B$9 -> 0.02626373626 | I12: 0.02626373626 | J12: 0.02626373626 | K12: 0.02626373626 | L12: 0.02626373626
A13: Gross profit | B13: =SUM(B9:B12) -> 629.160956 | C13: 657.4731991 | D13: 683.772127 | E13: 707.7041515 | F13: 732.4737968 | H13: =B13/B$9 -> 0.1827362637 | I13: =C13/C$9 -> 0.1827362637 | J13: =D13/D$9 -> 0.1827362637 | K13: =E13/E$9 -> 0.1827362637 | L13: =F13/F$9 -> 0.1827362637
A15: Selling and support costs | B15: -478.577 | C15: =-I15*C$9 -> -500.112965 | D15: =-J15*D$9 -> -520.1174836 | E15: =-K15*E$9 -> -538.3215955 | F15: =-L15*F$9 -> -557.1628514 | H15: =-B15/B$9 -> 0.139 | I15: =H15 -> 0.139 | J15: =I15 -> 0.139 | K15: =J15 -> 0.139 | L15: =K15 -> 0.139
A16: Operating profit | B16: =SUM(B13:B15) -> 150.583956 | C16: 157.3602341 | D16: 163.6546434 | E16: 169.3825559 | F16: 175.3109454 | H16: =B16/B$9 -> 0.04373626374 | I16: =C16/C$9 -> 0.04373626374 | J16: =D16/D$9 -> 0.04373626374 | K16: =E16/E$9 -> 0.04373626374 | L16: =F16/F$9 -> 0.04373626374
A18: Operating taxes | B18: -45.17518681 | C18: =-I18*C$16 -> -47.20807022 | D18: =-J18*D$16 -> -49.09639303 | E18: =-K18*E$16 -> -50.81476678 | F18: =-L18*F$16 -> -52.59328362 | H18: =-B18/B16 -> 0.3 | I18: =H18 -> 0.3 | J18: =I18 -> 0.3 | K18: =J18 -> 0.3 | L18: =K18 -> 0.3
A19: After-tax operating profit | B19: =SUM(B16:B18) -> 105.4087692 | C19: 110.1521638 | D19: 114.5582504 | E19: 118.5677892 | F19: 122.7176618 | H19: =B19/B$9 -> 0.03061538462 | I19: =C19/C$9 -> 0.03061538462 | J19: =D19/D$9 -> 0.03061538462 | K19: =E19/E$9 -> 0.03061538462 | L19: =F19/F$9 -> 0.03061538462
A22: =A5 -> Dracula Glass, Flat Glass
A23: Invested Capital2
A25: $R millions | B25: =B8 -> 2018 | C25: 2019 | D25: 2020 | E25: 2021 | F25: 2022 | H25: =B25 -> 2018 | I25: =C25 -> 2019 | J25: =D25 -> 2020 | K25: =E25 -> 2021 | L25: =F25 -> 2022
A26: Operating current assets | B26: 836.6961644 | C26: =I26*C$9/365 -> 874.3474918 | D26: =J26*D$9/365 -> 909.3213915 | E26: =K26*E$9/365 -> 941.1476402 | F26: =L26*F$9/365 -> 974.0878076 | H26: =B26/B$9*365 -> 88.7 | I26: =H26 -> 88.7 | J26: 88.7 | K26: 88.7 | L26: 88.7
A27: Operating current liabilities | B27: -376.3717808 | C27: =-I27*C$9/365 -> -393.308511 | D27: =-J27*D$9/365 -> -409.0408514 | E27: =-K27*E$9/365 -> -423.3572812 | F27: =-L27*F$9/365 -> -438.174786 | H27: =-B27/B$9*365 -> 39.9 | I27: 39.9 | J27: 39.9 | K27: 39.9 | L27: 39.9
A28: Operating working capital | B28: =SUM(B26:B27) -> 460.3243836 | C28: =SUM(C26:C27) -> 481.0389808 | D28: 500.2805401 | E28: 517.790359 | F28: 535.9130215 | H28: =B28/B$9*365 -> 48.8 | I28: =C28/C$9*365 -> 48.8 | J28: =D28/D$9*365 -> 48.8 | K28: =E28/E$9*365 -> 48.8 | L28: =F28/F$9*365 -> 48.8
A30: Property, plant & equipment, net | B30: 822.877 | C30: =I30*C$9 -> 859.906465 | D30: =J30*D$9 -> 894.3027236 | E30: =K30*E$9 -> 925.6033189 | F30: =L30*F$9 -> 957.9994351 | H30: =B30/B9 -> 0.239 | I30: =H30 -> 0.239 | J30: =I30 -> 0.239 | K30: =J30 -> 0.239 | L30: =K30 -> 0.239
A31: Invested capital | B31: =SUM(B28:B30) -> 1283.201384 | C31: =SUM(C28:C30) -> 1340.945446 | D31: 1394.583264 | E31: 1443.393678 | F31: 1493.912457 | H31: =B31/B9 -> 0.3726986301 | I31: 0.3726986301 | J31: 0.3726986301 | K31: 0.3726986301 | L31: 0.3726986301
A33: 1 Revenue forecast based on analyst forecasts, not on "as-is" growth
A34: 2 Forecasts of working capital are in days sales and forecasts of PP&E are in percentage of sales

Sheet Flat Valuation (hidden)
B2: Flat Glass
B3: Enterprise DCF Model
B6: $R millions | C6: =start_year -> 2018 | D6: =$C$6+1 & "F" -> 2019F | E6: =$C$6+2 & "F" -> 2020F | F6: =$C$6+3 & "F" -> 2021F | G6: =$C$6+4 & "F" -> 2022F | I6: Step 2: Continuing Value | J6: Flat Glass
A7: Step 1: Free Cash Flow Forecast | B7: Revenues | C7: ='Flat Forecasts'!B9 -> 3443 | D7: ='Flat Forecasts'!C9 -> 3597.935 | E7: ='Flat Forecasts'!D9 -> 3741.8524 | F7: ='Flat Forecasts'!E9 -> 3872.817234 | G7: ='Flat Forecasts'!F9 -> 4008.365837 | J7: Continuing Value
B8: - Operating costs | C8: =SUM('Flat Forecasts'!B10:B12)+'Flat Forecasts'!B15 -> -3292.416044 | D8: =SUM('Flat Forecasts'!C10:C12)+'Flat Forecasts'!C15 -> -3440.574766 | E8: =SUM('Flat Forecasts'!D10:D12)+'Flat Forecasts'!D15 -> -3578.197757 | F8: =SUM('Flat Forecasts'!E10:E12)+'Flat Forecasts'!E15 -> -3703.434678 | G8: =SUM('Flat Forecasts'!F10:F12)+'Flat Forecasts'!F15 -> -3833.054892
B9: = Operating profit | C9: =SUM(C7:C8) -> 150.583956 | D9: =SUM(D7:D8) -> 157.3602341 | E9: 163.6546434 | F9: 169.3825559 | G9: 175.3109454 | J9: Input | K9: Value
J10: Operating profit | K10: =G9 -> 175.3109454
B11: - Operating taxes | C11: =-C9*$K$11 -> -45.17518681 | D11: =-D9*$K$11 -> -47.20807022 | E11: =-E9*$K$11 -> -49.09639303 | F11: =-F9*$K$11 -> -50.81476678 | G11: =-G9*$K$11 -> -52.59328362 | J11: x 1 - Operating tax rate | K11: 0.3
B12: = After-tax operating profit | C12: =SUM(C9:C11) -> 105.4087692 | D12: =SUM(D9:D11) -> 110.1521638 | E12: 114.5582504 | F12: 118.5677892 | G12: 122.7176618 | J12: = After-tax operating profit | K12: =K10*(1-K11) -> 122.7176618
M13: Continuing
B14: + Depreciation | D14: =-'Flat Forecasts'!C12 -> 94.49521593 | E14: =-'Flat Forecasts'!D12 -> 98.27502457 | F14: =-'Flat Forecasts'!E12 -> 101.7146504 | J14: After-tax operating profit | K14: =K12*(1-K13) -> 122.7176618 | M14: Value
B15: = Gross cash flow | D15: =SUM(D12:D14) -> 204.6473798 | E15: =SUM(E12:E14) -> 212.833275 | F15: 220.2824396 | J15: RONIC (Return on New Capital) | K15: =K16 -> 0.104 | M15: =K14*(1-K17/K15)/(K16-K17) -> 1179.977517
J16: WACC | K16: =$E$24 -> 0.104 | M16: (kvd formula)
B17: - Investment in working capital | D17: ='Flat Forecasts'!B28-'Flat Forecasts'!C28 -> -20.71459726 | E17: ='Flat Forecasts'!C28-'Flat Forecasts'!D28 -> -19.24155923 | F17: ='Flat Forecasts'!D28-'Flat Forecasts'!E28 -> -17.5098189 | J17: Growth | K17: 0.04
B18: - Capital expenditures | D18: ='Flat Forecasts'!B30-'Flat Forecasts'!C30+'Flat Forecasts'!C12 -> -131.5246809 | E18: ='Flat Forecasts'!C30-'Flat Forecasts'!D30+'Flat Forecasts'!D12 -> -132.6712832 | F18: ='Flat Forecasts'!D30-'Flat Forecasts'!E30+'Flat Forecasts'!E12 -> -133.0152458
B19: = Free cash flow | D19: =SUM(D15:D18) -> 52.40810159 | E19: =SUM(E15:E18) -> 60.92043257 | F19: 69.75737494
B23: Flat Glass | E23: WACC
B24: Enterprise Value | E24: 0.104
C26: (a) | D26: (b) | E26: (a) x (b)
C27: Free | D27: Discount | E27: Discounted
B28: $R millions | C28: Cash Flow | D28: Rate | E28: Cash Flow
A29: Step 3: Enterprise DCF Valuation | B29: =D6 -> 2019F | C29: =D19 -> 52.40810159 | D29: =(1+$E$24) -> 1.104 | E29: =C29/D29 -> 47.47110651
B30: =E6 -> 2020F | C30: =E19 -> 60.92043257 | D30: =D29*(1+$E$24) -> 1.218816 | E30: =C30/D30 -> 49.98328917
B31: =F6 -> 2021F | C31: =F19 -> 69.75737494 | D31: =D30*(1+$E$24) -> 1.345572864 | E31: 51.84213862
B32: Continuing value | C32: =M15 -> 1179.977517 | D32: =D31 -> 1.345572864 | E32: 876.9331998
B33: Enterprise DCF | E33: =SUM(E29:E32) -> 1026.229734

Sheet Dracula Valuation (hidden)
A2: Dracula Glass
A3: Enterprise and Equity Valuation
A5: $R millions | B5: Value | C5: Invested Capital | D5: Market-to-book ratio
A6: Glass Containers | B6: ='GC Valuation'!E35 -> 3322.454243 | C6: ='GC Forecasts'!B31 -> 2185 | D6: =B6/C6 -> 1.520574024
A7: +Flat Glass | B7: ='Flat Valuation'!$E$33 -> 1026.229734 | C7: ='Flat Forecasts'!B31 -> 1283.201384 | D7: =B7/C7 -> 0.7997417609
A8: = Enterprise Value | B8: =SUM(B6:B7) -> 4348.683977
A10: Less: Value of debt | B10: -544.9744457
A11: = Equity Value | B11: =SUM(B8:B10) -> 3803.709531
A13: / Shares outstanding (millions) | B13: 105
A14: = Equity value per share | B14: =B11/B13 -> 36.22580506

Sheet Labor (hidden)
B2: Participant Model: Labor Synergies
B3: Forging labor costs ($R millions)
D5: <-------------- Forecast --------------> | I5: St. Germain
B7: $R millions | C7: 2015 | D7: 2016 | E7: 2017 | F7: 2018 | G7: 2019 | I7: Facility 1 | J7: Facility 2 | K7: Facility 3 | L7: Facility 4
A8: 1 | B8: Forging headcount (thousands of FTEs) | C8: =C14/(C13/1000) ->  | D8: =D10/D9 ->  | E8: =E10/E9 ->  | F8: =F10/F9 ->  | G8: =G10/G9 ->  | I8: =#REF! ->  | J8: =#REF! ->  | K8: =#REF! ->  | L8: =#REF! -> 
A9: =A8+1 -> 2 | B9: Thousands units per FTE | C9: =C10/C8 ->  | D9: =C9 ->  | E9: =D9 ->  | F9: =E9 ->  | G9: =F9 ->  | I9: =#REF! ->  | J9: =#REF! ->  | K9: =#REF! ->  | L9: =#REF! -> 
A10: 3 | B10: Number of units (millions) | C10: =#REF! ->  | D10: =#REF! ->  | E10: =#REF! ->  | F10: =#REF! ->  | G10: =#REF! ->  | I10: 2376.865557 | J10: 1442.564366 | K10: 1178.845709 | L10: 2162.14933
A11: 4
A12: 5 | B12: Forging headcount (thousands of FTEs) | C12: =C8 ->  | D12: =D8 ->  | E12: =E8 ->  | F12: =F8 ->  | G12: =G8 ->  | I12: =I8 ->  | J12: =J8 ->  | K12: =K8 ->  | L12: =L8 -> 
A13: 6 | B13: Forging salary (in R$) | C13: =#REF! ->  | D13: =C13*(#REF!/#REF!) ->  | E13: =D13*(#REF!/#REF!) ->  | F13: =E13*(#REF!/#REF!) ->  | G13: =F13*(#REF!/#REF!) ->  | I13: =#REF! ->  | J13: =#REF! ->  | K13: =#REF! ->  | L13: =#REF! -> 
A14: 7 | B14: Forging labor costs ($R millions) | C14: 1262.36094 | D14: =D12*D13/1000 ->  | E14: =E12*E13/1000 ->  | F14: =F12*F13/1000 ->  | G14: =G12*G13/1000 ->  | I14: =I12*I13/1000 ->  | J14: =J12*J13/1000 ->  | K14: =K12*K13/1000 ->  | L14: =L12*L13/1000 -> 

Sheet Raw Materials (hidden)
B2: Participant Model: Raw Materials Synergies
B3: Improvement in Raw Materials Expense (R$ millions)
D5: <-------------- Forecast --------------> | I5: St. Germain
B7: Millions of units | C7: 2015 | D7: =C7+1 -> 2016 | E7: =D7+1 -> 2017 | F7: =E7+1 -> 2018 | G7: =F7+1 -> 2019 | I7: Facility 1 | J7: Facility 2 | K7: Facility 3 | L7: Facility 4
B8: Beer | C8: =#REF! ->  | D8: =#REF! ->  | E8: =#REF! ->  | F8: =#REF! ->  | G8: =#REF! ->  | I8: 2006.04731 | J8: 909.1860748 | K8: 453.6964535 | L8: 1919.389192
B9: Wines and spirits | C9: =#REF! ->  | D9: =#REF! ->  | E9: =#REF! ->  | F9: =#REF! ->  | G9: =#REF! ->  | I9: 179.0067016 | J9: 316.6536861 | K9: 399.069763 | L9: 112.1826474
B10: Soft drinks | C10: =#REF! ->  | D10: =#REF! ->  | E10: =#REF! ->  | F10: =#REF! ->  | G10: =#REF! ->  | I10: 98.85682183 | J10: 102.509616 | K10: 192.4805664 | L10: 108.0878221
B11: Consumer products | C11: =#REF! ->  | D11: =#REF! ->  | E11: =#REF! ->  | F11: =#REF! ->  | G11: =#REF! ->  | I11: 92.95472365 | J11: 114.2149892 | K11: 133.598926 | L11: 22.48966896
B12: Total units | C12: =SUM(C8:C11) ->  | D12: =SUM(D8:D11) ->  | E12: =SUM(E8:E11) ->  | F12: =SUM(F8:F11) ->  | G12: =SUM(G8:G11) ->  | I12: =SUM(I8:I11) -> 2376.865557 | J12: =SUM(J8:J11) -> 1442.564366 | K12: =SUM(K8:K11) -> 1178.845709 | L12: =SUM(L8:L11) -> 2162.14933
B14: Units per ton1
B15: Beer | C15: =C8/C21 ->  | D15: =C15 ->  | I15: =I8/I21 -> 262.0931826 | J15: 260.1766705 | K15: 256.75 | L15: 260.445428
B16: Wines and spirits | C16: =C9/C22 ->  | I16: 241.4825901 | J16: 241.2329012 | K16: 240.4273606 | L16: 241.4825901
B17: Soft drinks | C17: =C10/C23 ->  | I17: 130.8063842 | J17: 126.94029 | K17: 126.625 | L17: 130.689205
B18: Consumer products | C18: =C11/C24 ->  | I18: 298.682551 | J18: 296.6548496 | K18: 295.1985927 | L18: 297.3672581
B20: Millions of tons
B21: Beer | C21: =#REF! ->  | D21: =D8/D15 ->  | I21: 7.653946929 | J21: 3.494495002 | K21: 1.767074794 | L21: 7.369640568
B22: Wines and spirits | C22: =#REF! ->  | I22: 0.7412820178 | J22: 1.312647174 | K22: 1.659835062 | L22: 0.46455791
B23: Soft drinks | C23: =#REF! ->  | I23: 0.7557492121 | J23: 0.8075420024 | K23: 1.520083447 | L23: 0.827060063
B24: Consumer products | C24: =#REF! ->  | I24: 0.3112157819 | J24: 0.3850096816 | K24: 0.4525730452 | L24: 0.07562927104
B25: Millions of tons | C25: =SUM(C21:C24) ->  | D25: =SUM(D21:D24) ->  | E25: =SUM(E21:E24) ->  | F25: =SUM(F21:F24) ->  | G25: =SUM(G21:G24) ->  | I25: =SUM(I21:I24) -> 9.46219394 | J25: =SUM(J21:J24) -> 5.99969386 | K25: =SUM(K21:K24) -> 5.399566349 | L25: =SUM(L21:L24) -> 8.736887812
B27: Purchase price ton1 | C27: =C28/C25 ->  | D27: =C27*(1+#REF!) ->  | E27: =D27*(1+#REF!) ->  | F27: =E27*(1+#REF!) ->  | G27: =F27*(1+#REF!) ->  | I27: =#REF! ->  | J27: =#REF! ->  | K27: =#REF! ->  | L27: =#REF! -> 
B28: Raw materials (R$ millions)3 | C28: 1849.932578 | D28: =D25*D27 ->  | E28: =E25*E27 ->  | F28: =F25*F27 ->  | G28: =G25*G27 ->  | I28: =I25*I27 ->  | J28: =J25*J27 ->  | K28: =K25*K27 ->  | L28: =L25*L27 -> 
B30: 1 Raw materials with no synergies in Case C will only approximate raw materials from Case A, because each product
B31: type uses different tonnage.
